bitfinex/quotes_SOLUSD_20240718
["timestamp","ask_amount","ask_price","bid_price","bid_amount"]
[1721296516801,6.47517353,159.63,159.6,12.88265]
[1721296517684,6.47517353,159.63,159.61,13.30296754]
[1721296518001,6.47517353,159.63,159.61,1.25296754]
[1721296528516,6.47517353,159.63,159.61,13.30296754]
[1721296528717,6.47517353,159.63,159.62,1.25282913]
[1721296530892,6.47517353,159.63,159.62,46.25282913]
[1721296531093,1.36555616,159.73,159.62,78.64282913]
[1721296531094,19.67615616,159.73,159.62,78.64282913]
[1721296531305,19.67615616,159.73,159.68,12.05]
[1721296531813,6.2609,159.72,159.68,12.05]
[1721296532121,12.71609959,159.72,159.68,12.05]
[1721296533607,12.71609959,159.72,159.69,1.2523235]
[1721296533807,12.71609959,159.72,159.69,13.3023235]
[1721296534113,6.45519959,159.72,159.7,13.30224347]
[1721296534312,6.45519959,159.72,159.71,12.05]
[1721296534827,12.71619959,159.72,159.68,12.05]
[1721296535208,12.71619959,159.72,159.63,1.2521921]
[1721296535209,24.76619959,159.72,159.67,12.05]
[1721296535407,24.76619959,159.72,159.68,1.25229509]
[1721296535709,12.71619959,159.72,159.68,13.30229509]
[1721296535908,12.71619959,159.72,159.69,1.25228988]
[1721296536611,19.67695616,159.71,159.63,21.2522984]
[1721296536824,18.3114,159.71,159.66,12.05]
[1721296537135,13.41555616,159.7,159.65,13.30233821]
[1721296537303,12.05,159.69,159.64,12.05]
[1721296537503,12.05,159.69,159.65,1.2526209]
[1721296537817,12.05,159.7,159.65,13.3026209]
[1721296538126,12.05,159.69,159.64,12.05]
[1721296538326,12.05,159.69,159.65,1.25255619]
[1721296539035,18.3121,159.69,159.65,1.25255619]
[1721296539410,1.36555616,159.68,159.64,12.05]
[1721296539615,1.36555616,159.67,159.62,1.2524957]
[1721296539806,1.36555616,159.67,159.6,0.83265]
[1721296539807,12.05,159.66,159.61,12.05]
[1721296540129,13.41555616,159.67,159.62,13.30283392]
[1721296540631,1.36555616,159.66,159.62,13.30283392]
[1721296540923,1.36555616,159.66,159.62,12.05]
[1721296541106,13.41555616,159.66,159.61,12.05]
[1721296541427,13.41555616,159.66,159.62,1.25280998]
[1721296542231,6.45799846,159.65,159.62,1.25280998]
[1721296542927,6.45799846,159.65,159.61,1.25281136]
[1721296545229,6.45799846,159.65,159.61,13.30281136]
[1721296547617,6.45799846,159.65,159.62,12.05]
[1721296547944,6.45799846,159.65,159.63,1.25270885]
[1721296558548,6.45799846,159.65,159.62,1.25280569]
[1721296559333,6.45799846,159.65,159.62,13.30280569]
[1721296559652,6.45799846,159.65,159.62,12.05]
[1721296559853,6.45799846,159.65,159.63,1.25279884]
[1721296561240,6.45799846,159.65,159.63,13.30279884]
[1721296561429,6.45799846,159.65,159.64,1.14059558]
[1721296567156,6.45799846,159.65,159.62,12.05]
[1721296567337,6.45799846,159.65,159.63,1.25272798]
[1721296567543,6.45799846,159.65,159.6,0.83265]
[1721296567746,6.45799846,159.65,159.61,13.30272851]
[1721296567951,6.45799846,159.65,159.62,45.0]
[1721296569061,6.45799846,159.65,159.63,1.25272892]
[1721296569449,6.45799846,159.65,159.6,0.83265]
[1721296569644,6.45799846,159.65,159.61,13.30283488]
[1721296570646,7.82355462,159.65,159.61,13.30283488]
[1721296570949,6.45799846,159.65,159.61,13.30283488]
[1721296574061,6.45799846,159.65,159.61,1.25283488]
[1721296574958,6.45799846,159.65,159.61,13.30283488]
[1721296579954,6.45799846,159.65,159.62,45.0]
[1721296580156,6.45799846,159.65,159.63,1.25271859]
[1721296586876,6.45799846,159.65,159.62,1.25272323]
[1721296593682,1.36555616,159.64,159.6,0.83265]
[1721296593886,13.41555616,159.64,159.6,0.83265]
[1721296594109,13.41555616,159.64,159.6,2.08554595]
[1721296594263,6.4514534,159.63,159.6,2.08554595]
[1721296595287,6.4514534,159.63,159.6,0.83265]
[1721296596285,6.4514534,159.63,159.61,1.25291379]
[1721296597372,6.4514534,159.63,159.6,14.13556205]
[1721296598480,6.4514534,159.63,159.6,2.08556205]
[1721296604183,6.4514534,159.63,159.6,14.13556205]
[1721296604995,6.4514534,159.63,159.6,2.08556375]
[1721296605271,6.4514534,159.63,159.6,0.83265]
[1721296605570,6.4514534,159.63,159.6,2.08564239]
[1721296608379,6.4514534,159.63,159.6,0.83265]
[1721296609379,1.36555616,159.62,159.6,0.83265]
[1721296610304,13.41555616,159.62,159.6,0.83265]
[1721296612387,1.36555616,159.62,159.6,0.83265]
[1721296612586,12.05,159.61,159.6,0.83265]
[1721296613395,18.50846634,159.61,159.6,0.83265]
[1721296614509,6.45846634,159.61,159.6,0.83265]
[1721296614707,18.50846634,159.61,159.6,0.83265]
[1721296616010,6.45846634,159.61,159.6,0.83265]
[1721296616308,18.50846634,159.61,159.6,0.83265]
[1721296617194,6.45846634,159.61,159.6,0.83265]
[1721296617507,18.50846634,159.61,159.6,0.83265]
[1721296618784,6.45846634,159.61,159.6,0.83265]
[1721296620709,7.8240225,159.61,159.6,0.83265]
[1721296621024,19.8740225,159.61,159.6,0.83265]
[1721296622886,7.8240225,159.61,159.6,0.83265]
[1721296623092,19.8740225,159.61,159.6,0.83265]
[1721296624411,26.1392225,159.61,159.6,0.83265]
[1721296624586,19.8740225,159.61,159.6,0.83265]
[1721296628521,7.8240225,159.61,159.6,0.83265]
[1721296629714,19.8740225,159.61,159.6,0.83265]
[1721296632221,26.1392225,159.61,159.6,0.83265]
[1721296634806,19.8740225,159.61,159.6,0.83265]
[1721296638211,26.1392225,159.61,159.6,0.83265]
[1721296642513,58.67266634,159.61,159.6,0.83265]
[1721296642737,60.0382225,159.61,159.6,0.83265]
[1721296643029,47.9882225,159.61,159.6,0.83265]
[1721296643908,26.1392225,159.61,159.6,0.83265]
[1721296644110,24.77366634,159.61,159.6,0.83265]
[1721296645407,6.45846634,159.61,159.6,0.83265]
[1721296647829,18.50846634,159.61,159.6,0.83265]
[1721296648214,6.45846634,159.61,159.6,0.83265]
[1721296652348,6.45846634,159.61,159.6,12.88265]
[1721296652514,6.45846634,159.61,159.6,73.08775]
[1721296652827,19.67855616,159.67,159.6,74.34056477]
[1721296653025,6.44112792,159.64,159.61,46.25276015]
[1721296653346,18.3134,159.66,159.61,58.30276015]
[1721296653546,24.75474486,159.66,159.61,58.30276015]
[1721296654213,12.70474486,159.66,159.62,12.05]
[1721296654531,12.70474486,159.66,159.62,13.30278857]
[1721296655242,6.44134486,159.66,159.63,12.05]
[1721296655541,6.44134486,159.66,159.64,1.25267231]
[1721296656636,6.44134486,159.66,159.64,13.30267231]
[1721296656940,6.44134486,159.66,159.64,12.05]
[1721296658125,6.44134486,159.66,159.65,1.25263878]
[1721296658329,1.36555616,159.71,159.65,12.05]
[1721296658330,19.67695616,159.71,159.65,12.05]
[1721296658516,19.67695616,159.71,159.66,1.25243621]
[1721296658848,6.45659382,159.69,159.66,1.25243621]
[1721296659442,6.45659382,159.69,159.63,1.2524691]
[1721296659649,6.45659382,159.69,159.63,58.3024691]
[1721296659650,13.41555616,159.68,159.63,58.3024691]
[1721296659814,12.05,159.68,159.63,58.3024691]
[1721296660016,24.76879382,159.69,159.64,12.05]
[1721296660223,24.76879382,159.69,159.65,1.25258833]
[1721296660419,1.36555616,159.68,159.64,1.25259621]
[1721296660750,18.3129,159.67,159.64,1.25259621]
[1721296661042,1.36555616,159.68,159.64,1.25259621]
[1721296661043,12.05,159.68,159.64,1.25259621]
[1721296661225,13.41555616,159.68,159.64,1.25259621]
[1721296661408,1.36555616,159.67,159.62,12.05]
[1721296661607,1.36555616,159.67,159.63,1.25270941]
[1721296662920,1.36555616,159.67,159.63,13.30270941]
[1721296663125,1.36555616,159.67,159.63,12.05]
[1721296664657,1.36555616,159.68,159.64,1.25269622]
[1721296665416,24.76879382,159.69,159.64,13.30269622]
[1721296665622,24.76879382,159.69,159.64,12.05]
[1721296665824,1.36555616,159.68,159.64,12.05]
[1721296666532,6.45659382,159.69,159.65,13.30263927]
[1721296666742,6.45659382,159.69,159.65,12.05]
[1721296668253,6.45659382,159.69,159.67,12.05]
[1721296668425,6.45659382,159.69,159.66,13.30253972]
[1721296668628,6.45659382,159.69,159.67,1.25243465]
[1721296670948,6.45659382,159.69,159.63,1.2524406]
[1721296671166,1.36555616,159.68,159.65,12.05]
[1721296671547,1.36555616,159.67,159.63,1.2524406]
[1721296671749,1.36555616,159.67,159.63,12.05]
[1721296671940,6.44052725,159.67,159.64,13.30267731]
[1721296672245,6.44052725,159.67,159.64,12.05]
[1721296672450,6.44052725,159.67,159.61,1.25263716]
[1721296672636,6.44052725,159.67,159.65,12.05]
[1721296673246,6.44052725,159.67,159.61,46.25263716]
[1721296673442,6.44052725,159.67,159.64,12.05]
[1721296674855,6.44052725,159.67,159.65,12.05]
[1721296675634,6.44052725,159.67,159.62,1.25263941]
[1721296675849,6.44052725,159.67,159.62,21.25263941]
[1721296676056,6.44052725,159.67,159.63,45.0]
[1721296676242,6.44052725,159.67,159.64,1.25260706]
[1721296676446,6.44052725,159.67,159.65,1.25261346]
[1721296677567,6.44052725,159.67,159.64,1.25259715]
[1721296677870,6.44052725,159.67,159.66,12.05]
[1721296680973,6.44052725,159.67,159.66,57.05]
[1721296682275,13.41555616,159.72,159.66,57.05]
[1721296682454,6.54224264,159.69,159.67,13.30239655]
[1721296682666,13.41555616,159.72,159.67,13.30239655]
[1721296683481,6.5423117,159.71,159.67,13.30239655]
[1721296683971,18.5923117,159.71,159.67,1.25239655]
[1721296684179,18.5923117,159.71,159.66,57.05]
[1721296684180,6.5423117,159.71,159.68,1.25239768]
[1721296684379,18.5923117,159.71,159.68,1.25239768]
[1721296684551,18.5923117,159.71,159.67,1.25235734]
[1721296684752,1.36555616,159.7,159.66,45.0]
[1721296685672,1.36555616,159.7,159.66,46.25239859]
[1721296686658,18.5923117,159.71,159.66,46.25239859]
[1721296686659,19.95786786,159.71,159.66,46.25239859]
[1721296686853,19.95786786,159.71,159.66,58.30239859]
[1721296687170,19.95786786,159.71,159.67,1.25239722]
[1721296687569,18.5923117,159.71,159.67,1.25239722]
[1721296688151,13.41555616,159.7,159.62,20.0]
[1721296688350,13.41555616,159.7,159.64,12.05]
[1721296688563,18.3123,159.69,159.64,12.05]
[1721296688872,1.36555616,159.68,159.63,13.30261049]
[1721296689459,1.36555616,159.68,159.64,12.05]
[1721296689673,1.36555616,159.68,159.62,1.25263984]
[1721296689873,1.36555616,159.69,159.65,12.05]
[1721296691284,1.36555616,159.69,159.63,1.1402464]
[1721296691474,1.36555616,159.69,159.64,13.30264181]
[1721296691868,1.36555616,159.69,159.64,12.05]
[1721296692267,13.41555616,159.69,159.64,12.05]
[1721296693479,1.36555616,159.69,159.64,12.05]
[1721296693798,6.54310259,159.68,159.64,12.05]
[1721296695372,6.54310259,159.68,159.65,1.25264188]
[1721296695556,6.54310259,159.68,159.66,12.05]
[1721296696077,6.54310259,159.68,159.65,13.30264188]
[1721296696260,6.54310259,159.68,159.65,12.05]
[1721296697458,6.54310259,159.68,159.66,1.2525604]
[1721296697779,6.54310259,159.68,159.65,12.05]
[1721296699859,6.54310259,159.68,159.66,1.25255658]
[1721296700079,6.54310259,159.68,159.66,13.30255658]
[1721296700269,6.54310259,159.68,159.66,12.05]
[1721296701090,6.54310259,159.68,159.65,12.05]
[1721296708875,6.54310259,159.68,159.66,1.25256322]
[1721296713791,6.54310259,159.68,159.66,13.30256322]
[1721296713993,6.54310259,159.68,159.66,12.05]
[1721296714294,6.54310259,159.68,159.67,1.25248498]
[1721296720992,6.54310259,159.68,159.66,46.25243293]
[1721296721300,6.54310259,159.68,159.66,58.30243293]
[1721296721488,6.54310259,159.68,159.67,1.25242756]
[1721296726610,6.54310259,159.68,159.62,1.252422]
[1721296726789,6.54310259,159.68,159.64,12.05]
[1721296727184,18.59310259,159.68,159.63,12.05]
[1721296727391,18.59310259,159.68,159.64,45.0]
[1721296727790,18.59310259,159.68,159.64,1.25257222]
[1721296729582,1.36555616,159.67,159.62,13.30266537]
[1721296730089,1.36555616,159.67,159.62,1.25266537]
[1721296730296,6.5411913,159.66,159.61,13.30281863]
[1721296730687,18.5911913,159.66,159.61,13.30281863]
[1721296731598,6.5411913,159.66,159.61,13.30281863]
[1721296731896,6.5411913,159.66,159.62,12.05]
[1721296732097,6.5411913,159.66,159.63,1.25277041]
[1721296732291,6.5411913,159.66,159.6,0.83265]
[1721296732610,6.5411913,159.66,159.62,12.05]
[1721296733105,6.5411913,159.66,159.63,1.25277263]
[1721296733518,6.5411913,159.66,159.63,13.30277263]
[1721296733741,6.5411913,159.66,159.63,12.05]
[1721296734698,6.5411913,159.66,159.64,13.30276874]
[1721296734899,6.5411913,159.66,159.64,12.05]
[1721296741216,6.5411913,159.66,159.65,1.25263564]
[1721296741610,6.5411913,159.66,159.65,12.05]
[1721296743839,6.5411913,159.66,159.65,57.05]
[1721296744017,1.36555616,159.7,159.65,57.05]
[1721296744221,18.311,159.72,159.65,57.05]
[1721296744222,6.53784588,159.69,159.66,13.30245548]
[1721296746015,6.53784588,159.69,159.66,1.25245548]
[1721296749828,6.53784588,159.69,159.65,12.05]
[1721296750034,6.53784588,159.69,159.66,1.25247278]
[1721296751633,6.53784588,159.69,159.65,13.30250589]
[1721296751930,12.05,159.67,159.6,0.83265]
[1721296752128,1.36555616,159.66,159.61,12.05]
[1721296752321,13.41555616,159.66,159.61,12.05]
[1721296752515,12.05,159.66,159.61,12.05]
[1721296752716,1.36555616,159.68,159.61,12.05]
[1721296752717,12.05,159.67,159.62,1.25278122]
[1721296752922,1.36555616,159.67,159.62,1.25278122]
[1721296753122,12.05,159.68,159.62,1.25278122]
[1721296753123,1.36555616,159.68,159.64,12.05]
[1721296754420,1.36555616,159.69,159.64,12.05]
[1721296754629,6.53867614,159.67,159.64,12.05]
[1721296755142,6.53867614,159.67,159.65,1.25266466]
[1721296755316,6.53867614,159.67,159.65,12.05]
[1721296760025,6.53867614,159.67,159.66,1.25256335]
[1721296760232,6.53867614,159.67,159.66,13.30256335]
[1721296760436,1.36555616,159.72,159.66,57.05]
[1721296760742,6.536337,159.71,159.68,12.05]
[1721296760944,6.536337,159.71,159.69,1.25229588]
[1721296761939,6.536337,159.71,159.68,1.2522978]
[1721296763547,6.536337,159.71,159.66,57.05]
[1721296763764,18.586337,159.71,159.66,12.05]
[1721296764052,1.36555616,159.7,159.66,12.05]
[1721296764231,13.41555616,159.7,159.62,1.25244947]
[1721296764433,12.05,159.69,159.64,12.05]
[1721296765247,12.05,159.69,159.65,1.25252933]
[1721296765452,1.36555616,159.68,159.64,12.05]
[1721296765639,1.36555616,159.68,159.63,12.05]
[1721296765947,1.36555616,159.68,159.64,1.25265437]
[1721296766349,13.41555616,159.68,159.6,0.83265]
[1721296766553,1.36555616,159.67,159.62,12.05]
[1721296766850,1.36555616,159.67,159.63,1.25266323]
[1721296768738,13.41555616,159.68,159.63,13.30266323]
[1721296768934,13.41555616,159.68,159.64,1.25265405]
[1721296769137,1.36555616,159.67,159.64,1.25265405]
[1721296769961,1.36555616,159.67,159.63,1.25265845]
[1721296770164,1.36555616,159.67,159.63,13.30265845]
[1721296770659,1.36555616,159.68,159.63,13.30265845]
[1721296771066,6.53871141,159.67,159.64,1.25265645]
[1721296771947,6.53871141,159.67,159.65,1.25265572]
[1721296772675,1.36555616,159.72,159.65,1.25265572]
[1721296772877,12.05,159.71,159.66,12.05]
[1721296773165,6.53757085,159.7,159.66,12.05]
[1721296773751,6.53757085,159.7,159.68,12.05]
[1721296773973,6.53757085,159.7,159.69,1.2522734]
[1721296774340,7.90312701,159.7,159.61,1.25228941]
[1721296774546,12.05,159.67,159.61,13.30228941]
[1721296774855,1.36555616,159.66,159.61,13.30228941]
[1721296775872,13.41555616,159.67,159.61,13.30228941]
[1721296776156,13.41555616,159.67,159.61,1.25228941]
[1721296776564,13.41555616,159.67,159.61,13.30228941]
[1721296777072,1.36555616,159.66,159.61,13.30228941]
[1721296777956,1.36555616,159.66,159.61,1.25228941]
[1721296778160,12.05,159.65,159.61,1.25228941]
[1721296778348,13.41555616,159.64,159.61,1.25228941]
[1721296778548,12.05,159.65,159.61,1.25228941]
[1721296778788,1.36555616,159.64,159.61,1.25228941]
[1721296778950,13.41555616,159.65,159.61,1.25228941]
[1721296779265,13.41555616,159.66,159.61,1.25228941]
[1721296779567,13.41555616,159.66,159.61,13.30228941]
[1721296783184,12.05,159.65,159.6,32.88265]
[1721296783382,1.36555616,159.64,159.6,32.88265]
[1721296783612,13.41555616,159.64,159.61,1.25289127]
[1721296786378,19.95426984,159.65,159.61,1.25289127]
[1721296786967,1.36555616,159.64,159.61,1.25289127]
[1721296787583,19.95426984,159.65,159.61,1.25289127]
[1721296788382,6.53871368,159.65,159.61,13.30289127]
[1721296788766,6.53871368,159.65,159.62,12.05]
[1721296789087,6.53871368,159.65,159.63,1.2527214]
[1721296789879,6.53871368,159.65,159.62,1.25275052]
[1721296791260,7.90426984,159.65,159.6,32.88265]
[1721296791461,7.90426984,159.65,159.61,1.25284434]
[1721296791662,7.90426984,159.65,159.6,32.88265]
[1721296791883,7.90426984,159.65,159.61,1.252859]
[1721296792183,6.53871368,159.65,159.61,1.252859]
[1721296792384,7.90426984,159.65,159.61,1.252859]
[1721296793287,19.95426984,159.65,159.61,1.252859]
[1721296797494,7.90426984,159.65,159.61,1.252859]
[1721296797794,6.53871368,159.65,159.61,1.252859]
[1721296798290,6.53871368,159.65,159.61,13.302859]
[1721296802681,6.53871368,159.65,159.62,12.05]
[1721296802995,6.53871368,159.65,159.63,1.25275049]
[1721296806297,6.53871368,159.65,159.62,13.30272429]
[1721296806513,13.41555616,159.64,159.61,1.25282812]
[1721296806813,18.315,159.62,159.6,0.83265]
[1721296806986,12.05,159.61,159.6,0.83265]
[1721296807305,13.41555616,159.61,159.6,0.83265]
[1721296807694,19.68075616,159.61,159.6,0.83265]
[1721296808001,13.41555616,159.61,159.6,0.83265]
[1721296808504,41.75345616,159.61,159.6,0.83265]
[1721296809504,53.80345616,159.61,159.6,0.83265]
[1721296810193,41.75345616,159.61,159.6,0.83265]
[1721296810391,23.43825616,159.61,159.6,0.83265]
[1721296810590,12.80472454,159.62,159.6,0.83265]
[1721296810591,18.58982454,159.62,159.6,0.83265]
[1721296810780,6.53982454,159.62,159.6,0.83265]
[1721296812381,6.53982454,159.62,159.61,1.25301751]
[1721296812612,6.53982454,159.62,159.6,0.83265]
[1721296812613,6.53982454,159.62,159.6,2.08566751]
[1721296812812,6.53982454,159.62,159.6,14.13566751]
[1721296813114,1.36555616,159.65,159.61,12.05]
[1721296813300,7.90273025,159.65,159.61,12.05]
[1721296814711,1.36555616,159.64,159.6,0.83265]
[1721296814915,12.05,159.62,159.6,0.83265]
[1721296815209,13.41555616,159.62,159.6,0.83265]
[1721296815792,12.05,159.61,159.6,0.83265]
[1721296816219,12.05,159.62,159.6,0.83265]
[1721296816412,1.36555616,159.61,159.6,0.83265]
[1721296816918,13.41555616,159.62,159.6,0.83265]
[1721296817106,12.05,159.62,159.6,0.83265]
[1721296817299,13.41555616,159.62,159.6,0.83265]
[1721296818309,12.05,159.62,159.6,0.83265]
[1721296820215,13.41555616,159.61,159.6,0.83265]
[1721296821802,12.05,159.61,159.6,0.83265]
[1721296823597,18.58562825,159.61,159.6,0.83265]
[1721296824918,19.95118441,159.61,159.6,0.83265]
[1721296827487,18.58562825,159.61,159.6,0.83265]
[1721296828495,19.95118441,159.61,159.6,0.83265]
[1721296828700,26.21638441,159.61,159.6,0.83265]
[1721296829008,19.95118441,159.61,159.6,0.83265]
[1721296830506,7.90118441,159.61,159.6,0.83265]
[1721296830724,18.58562825,159.61,159.6,0.83265]
[1721296831353,6.53562825,159.61,159.6,0.83265]
[1721296833411,18.58562825,159.61,159.6,0.83265]
[1721296834227,6.53562825,159.61,159.6,0.83265]
[1721296837146,12.05,159.65,159.6,2.08566856]
[1721296837313,12.05,159.65,159.6,12.88265]
[1721296837514,18.58409692,159.65,159.61,1.2528887]
[1721296838038,6.53409692,159.65,159.61,1.2528887]
[1721296838237,1.36555616,159.64,159.61,1.2528887]
[1721296839926,13.41555616,159.64,159.61,1.2528887]
[1721296841217,13.41555616,159.64,159.6,0.83265]
[1721296841218,13.41555616,159.64,159.6,2.08555597]
[1721296841422,12.05,159.62,159.6,0.83265]
[1721296841726,13.41555616,159.63,159.6,0.83265]
[1721296842640,12.05,159.63,159.6,0.83265]
[1721296843327,13.41555616,159.64,159.6,0.83265]
[1721296843732,12.05,159.63,159.6,0.83265]
[1721296845244,1.36555616,159.62,159.6,0.83265]
[1721296846752,13.41555616,159.62,159.6,0.83265]
[1721296846921,1.36555616,159.61,159.6,0.83265]
[1721296847251,13.41555616,159.61,159.6,0.83265]
[1721296847442,12.05,159.61,159.6,0.83265]
[1721296847746,18.58626158,159.61,159.6,0.83265]
[1721296850740,24.85146158,159.61,159.6,0.83265]
[1721296853040,18.58626158,159.61,159.6,0.83265]
[1721296853245,19.95181774,159.61,159.6,0.83265]
[1721296853830,6.53626158,159.61,159.6,0.83265]
[1721296858062,18.58626158,159.61,159.6,0.83265]
[1721296859054,19.95181774,159.61,159.6,0.83265]
[1721296860155,18.58626158,159.61,159.6,0.83265]
[1721296860454,6.53626158,159.61,159.6,0.83265]
[1721296862734,19.95181774,159.61,159.6,0.83265]
[1721296863462,18.58626158,159.61,159.6,0.83265]
[1721296863636,6.53626158,159.61,159.6,0.83265]
[1721296864045,7.90181774,159.61,159.6,0.83265]
[1721296864749,19.95181774,159.61,159.6,0.83265]
[1721296865637,7.90181774,159.61,159.6,0.83265]
[1721296866959,26.21701774,159.61,159.6,0.83265]
[1721296870345,38.26701774,159.61,159.6,0.83265]
[1721296872759,26.21701774,159.61,159.6,0.83265]
[1721296874368,14.16701774,159.61,159.6,0.83265]
[1721296874662,26.21701774,159.61,159.6,0.83265]
[1721296875865,38.26701774,159.61,159.6,0.83265]
[1721296876252,26.21701774,159.61,159.6,0.83265]
[1721296879348,38.26701774,159.61,159.6,0.83265]
[1721296879857,102.09701774,159.61,159.6,0.83265]
[1721296880052,83.26701774,159.61,159.6,0.83265]
[1721296880458,102.10701774,159.61,159.6,0.83265]
[1721296880840,113.40278865,159.61,159.6,0.83265]
[1721296881051,102.10701774,159.61,159.6,0.83265]
[1721296881256,138.25701774,159.61,159.6,0.83265]
[1721296885264,138.25701774,159.61,159.51,1.2536811]
[1721296885265,15.6647,159.6,159.51,1.2536811]
[1721296885472,15.6647,159.6,159.5,7.65870435]
[1721296885473,12.05,159.53,159.5,7.65870435]
[1721296885953,6.53081443,159.52,159.5,7.65870435]
[1721296886463,6.53081443,159.52,159.5,6.405]
[1721296888680,6.53081443,159.52,159.49,1.25372965]
[1721296888855,6.53081443,159.52,159.49,46.25372965]
[1721296890974,6.53081443,159.52,159.49,45.0]
[1721296891271,19.94637059,159.52,159.48,16.6654]
[1721296891570,12.05,159.51,159.48,16.6654]
[1721296891772,18.58081443,159.52,159.48,16.6654]
[1721296893178,1.36555616,159.51,159.48,16.6654]
[1721296894284,18.58081443,159.52,159.48,16.6654]
[1721296894463,1.36555616,159.51,159.48,16.6654]
[1721296895059,1.36555616,159.51,159.45,12.05]
[1721296895383,12.05,159.5,159.46,1.25405018]
[1721296895782,1.36555616,159.49,159.46,1.25405018]
[1721296895970,12.05,159.5,159.46,1.25405018]
[1721296896284,6.53147754,159.49,159.45,1.25406018]
[1721296896590,19.9470337,159.49,159.45,1.25407353]
[1721296896763,1.36555616,159.48,159.45,1.25407353]
[1721296897078,13.41555616,159.48,159.44,15.86255]
[1721296899864,12.05,159.47,159.44,0.83265]
[1721296900064,1.36555616,159.46,159.44,0.83265]
[1721296900887,1.36555616,159.48,159.44,0.83265]
[1721296901085,1.36555616,159.48,159.44,14.1368678]
[1721296903170,6.53147754,159.49,159.45,12.05]
[1721296903374,6.53147754,159.49,159.46,1.25409057]
[1721296904092,7.8970337,159.49,159.46,1.25409057]
[1721296904785,6.53147754,159.49,159.46,1.25409057]
[1721296905085,6.53147754,159.49,159.45,12.05]
[1721296905287,6.53147754,159.49,159.46,1.25406265]
[1721296906492,19.9470337,159.49,159.44,12.88265]
[1721296906994,19.9470337,159.49,159.45,1.25409497]
[1721296907692,1.36555616,159.48,159.44,12.88265]
[1721296907989,1.36555616,159.48,159.44,0.83265]
[1721296908190,1.36555616,159.48,159.44,2.08686179]
[1721296908492,6.51392174,159.47,159.44,2.08686179]
[1721296909195,6.51392174,159.47,159.44,14.13686179]
[1721296909996,6.51392174,159.47,159.44,2.08686179]
[1721296911970,6.51392174,159.47,159.44,0.83265]
[1721296912173,6.51392174,159.47,159.44,2.08693541]
[1721296913393,6.51392174,159.47,159.45,12.05]
[1721296913792,6.51392174,159.47,159.44,57.88265]
[1721296916174,6.51392174,159.47,159.45,13.30412469]
[1721296917473,6.51392174,159.47,159.45,1.25412469]
[1721296918489,6.51392174,159.47,159.44,12.88265]
[1721296918697,1.36555616,159.46,159.44,0.83265]
[1721296918896,7.8794779,159.47,159.44,0.83265]
[1721296926206,19.9294779,159.47,159.44,0.83265]
[1721296927182,12.05,159.46,159.44,0.83265]
[1721296927583,1.36555616,159.45,159.44,0.83265]
[1721296927996,13.41555616,159.45,159.44,0.83265]
[1721296928221,19.93233216,159.45,159.44,0.83265]
[1721296930720,18.566776,159.45,159.44,0.83265]
[1721296932325,6.516776,159.45,159.44,0.83265]
[1721296932509,18.566776,159.45,159.44,0.83265]
[1721296933733,19.93233216,159.45,159.44,0.83265]
[1721296934627,6.516776,159.45,159.44,0.83265]
[1721296934805,18.566776,159.45,159.44,0.83265]
[1721296936745,19.93233216,159.45,159.44,0.83265]
[1721296940333,26.20383216,159.45,159.44,0.83265]
[1721296940536,24.838276,159.45,159.44,0.83265]
[1721296941141,46.446076,159.45,159.44,0.83265]
[1721296941327,34.396076,159.45,159.44,0.83265]
[1721296941631,46.446076,159.45,159.44,0.83265]
[1721296943045,40.174576,159.45,159.44,0.83265]
[1721296943346,41.54013216,159.45,159.44,0.83265]
[1721296943847,47.81163216,159.45,159.44,0.83265]
[1721296944050,78.70163216,159.45,159.44,0.83265]
[1721296944210,179.85163216,159.45,159.44,0.83265]
[1721296944405,179.85163216,159.45,159.34,1.25494168]
[1721296944406,189.25933216,159.45,159.34,1.25494168]
[1721296944623,12.05,159.38,159.32,13.30506003]
[1721296944828,1.36555616,159.37,159.33,1.25506093]
[1721296945324,12.05,159.35,159.29,7.71386085]
[1721296945541,13.41555616,159.34,159.3,1.25526864]
[1721296945710,13.41555616,159.33,159.3,1.25526864]
[1721296945912,1.36555616,159.36,159.3,13.30526864]
[1721296946134,13.41555616,159.36,159.31,12.05]
[1721296946339,13.41555616,159.36,159.32,1.25520061]
[1721296946340,1.36555616,159.35,159.32,1.25520061]
[1721296946539,13.41555616,159.36,159.32,1.25520061]
[1721296947112,12.05,159.36,159.33,1.25517823]